[Event "Early-Titled-Tuesday-Blitz-July-09-2024"]
[Site "Chess.com"]
[Date "2024.07.09"]
[Round "3"]
[White "2KTNGO"]
[Black "neistoviupryam"]
[Result "1-0"]
[WhiteElo "2593"]
[BlackElo "2327"]
[TimeControl "180+1"]
[EndTime "8:29:59 PDT"]
[Termination "2KTNGO won by resignation"]

1. d4 {[%clk 0:03:00.9]} 1... d5 {[%clk 0:02:59.4]} 2. Bf4 {[%clk 0:02:55.7]}
2... e6 {[%clk 0:02:59.4]} 3. e3 {[%clk 0:02:55.1]} 3... f5 {[%clk 0:02:59.2]}
4. Nf3 {[%clk 0:02:53.9]} 4... Nf6 {[%clk 0:02:58.4]} 5. c4 {[%clk 0:02:53.3]}
5... c6 {[%clk 0:02:58.7]} 6. Nc3 {[%clk 0:02:52.8]} 6... Bd6 {[%clk 0:02:58.8]}
7. Ne5 {[%clk 0:02:51.5]} 7... Qe7 {[%clk 0:02:57.3]} 8. h3 {[%clk 0:02:46.5]}
8... Nbd7 {[%clk 0:02:57.1]} 9. g4 {[%clk 0:02:46]} 9... O-O {[%clk 0:02:56]}
10. gxf5 {[%clk 0:02:43.9]} 10... exf5 {[%clk 0:02:53.4]} 11. cxd5 {[%clk
0:02:36.9]} 11... Nxe5 {[%clk 0:02:51.6]} 12. dxe5 {[%clk 0:02:33.4]} 12... Bxe5
{[%clk 0:02:51.5]} 13. Bxe5 {[%clk 0:02:33.1]} 13... Qxe5 {[%clk 0:02:51.6]} 14.
dxc6 {[%clk 0:02:33]} 14... bxc6 {[%clk 0:02:45.8]} 15. Qb3+ {[%clk 0:02:27.6]}
15... Be6 {[%clk 0:02:44.2]} 16. Bc4 {[%clk 0:02:26]} 16... Bxc4 {[%clk
0:02:41.2]} 17. Qxc4+ {[%clk 0:02:25.4]} 17... Kh8 {[%clk 0:02:41.9]} 18. O-O-O
{[%clk 0:02:24.6]} 18... Rab8 {[%clk 0:02:34.9]} 19. Rd4 {[%clk 0:02:20.9]}
19... c5 {[%clk 0:02:29.3]} 20. Rd2 {[%clk 0:02:14.6]} 20... Rb4 {[%clk
0:02:26.8]} 21. Qd3 {[%clk 0:02:07.5]} 21... h6 {[%clk 0:02:20.1]} 22. Qd6
{[%clk 0:01:57.9]} 22... Qe8 {[%clk 0:02:14.8]} 23. Qxc5 {[%clk 0:01:48.1]}
23... Qb8 {[%clk 0:02:14.5]} 24. Rhd1 {[%clk 0:01:46.7]} 24... Ne4 {[%clk
0:02:03.6]} 25. Qxf8+ {[%clk 0:01:42]} 25... Qxf8 {[%clk 0:02:00.2]} 26. Rd8
{[%clk 0:01:39.7]} 26... Kg8 {[%clk 0:01:56.8]} 27. Rxf8+ {[%clk 0:01:38.4]}
27... Kxf8 {[%clk 0:01:56.8]} 28. Nxe4 {[%clk 0:01:37.3]} 28... Rxe4 {[%clk
0:01:55.8]} 29. Rd5 {[%clk 0:01:31.7]} 29... g6 {[%clk 0:01:41.7]} 30. Rd6
{[%clk 0:01:29.1]} 30... Kf7 {[%clk 0:01:39.6]} 31. Rd4 {[%clk 0:01:25.7]} 31...
Re7 {[%clk 0:01:37.9]} 32. b4 {[%clk 0:01:20.3]} 32... Kf6 {[%clk 0:01:33.1]}
33. Kd2 {[%clk 0:01:16.4]} 33... Rc7 {[%clk 0:01:32]} 34. a4 {[%clk 0:01:15.3]}
34... Ke5 {[%clk 0:01:21.6]} 35. b5 {[%clk 0:01:14.1]} 35... g5 {[%clk
0:01:19.4]} 36. a5 {[%clk 0:01:08.8]} 36... Rc5 {[%clk 0:01:18.6]} 37. Rb4
{[%clk 0:01:07.1]} 37... f4 {[%clk 0:01:17.9]} 38. b6 {[%clk 0:01:05.7]} 38...
axb6 {[%clk 0:01:16.4]} 39. axb6 {[%clk 0:01:04.1]} 39... fxe3+ {[%clk
0:01:15.7]} 40. fxe3 {[%clk 0:01:03.6]} 40... Rc8 {[%clk 0:01:15.4]} 41. Kd3
{[%clk 0:00:57.7]} 41... Rd8+ {[%clk 0:01:10.6]} 42. Kc3 {[%clk 0:00:51.4]}
42... Rc8+ {[%clk 0:01:00.8]} 43. Rc4 {[%clk 0:00:42.1]} 43... Rb8 {[%clk
0:01:00]} 44. Rc6 {[%clk 0:00:41.4]} 44... Ke4 {[%clk 0:00:53.7]} 45. Re6+
{[%clk 0:00:33.6]} 45... Kf3 {[%clk 0:00:52.3]} 46. Rxh6 {[%clk 0:00:29.6]}
46... Kxe3 {[%clk 0:00:52.4]} 47. Kc4 {[%clk 0:00:29.6]} 47... Kf4 {[%clk
0:00:32.9]} 48. Kb5 {[%clk 0:00:28.7]} 48... Re8 {[%clk 0:00:20.2]} 49. Kc6
{[%clk 0:00:27.6]} 49... Re1 {[%clk 0:00:18.4]} 50. b7 {[%clk 0:00:27.2]} 50...
Rc1+ {[%clk 0:00:17.9]} 51. Kd7 {[%clk 0:00:27.2]} 51... Rb1 {[%clk 0:00:16.8]}
52. Kc7 {[%clk 0:00:27.2]} 52... Kg3 {[%clk 0:00:11.1]} 53. b8=Q {[%clk
0:00:25.4]} 1-0

[Event "Early-Titled-Tuesday-Blitz-July-09-2024"]
[Site "Chess.com"]
[Date "2024.07.09"]
[Round "3"]
[White "SharathRk6"]
[Black "rhungaski"]
[Result "1-0"]
[WhiteElo "2462"]
[BlackElo "2654"]
[TimeControl "180+1"]
[EndTime "8:30:01 PDT"]
[Termination "SharathRk6 won by resignation"]

1. e4 {[%clk 0:03:00.9]} 1... e6 {[%clk 0:02:58.9]} 2. d4 {[%clk 0:03:00.6]}
2... d5 {[%clk 0:02:58.9]} 3. e5 {[%clk 0:02:59.5]} 3... Ne7 {[%clk 0:02:57.6]}
4. Nf3 {[%clk 0:02:58.4]} 4... b6 {[%clk 0:02:55.9]} 5. c3 {[%clk 0:02:58.1]}
5... Qd7 {[%clk 0:02:56.1]} 6. Bd3 {[%clk 0:02:58.4]} 6... Ba6 {[%clk
0:02:56.1]} 7. O-O {[%clk 0:02:57.2]} 7... Bxd3 {[%clk 0:02:49.8]} 8. Qxd3
{[%clk 0:02:58.1]} 8... c5 {[%clk 0:02:46.5]} 9. c4 {[%clk 0:02:52.4]} 9... dxc4
{[%clk 0:02:35.3]} 10. Qxc4 {[%clk 0:02:49.4]} 10... Nd5 {[%clk 0:02:04.6]} 11.
Nc3 {[%clk 0:02:42.6]} 11... Nc6 {[%clk 0:01:36.7]} 12. Nxd5 {[%clk 0:02:35.4]}
12... Qxd5 {[%clk 0:01:37.6]} 13. Qxd5 {[%clk 0:02:32.6]} 13... exd5 {[%clk
0:01:38.5]} 14. Be3 {[%clk 0:02:25.5]} 14... c4 {[%clk 0:01:37.6]} 15. Rac1
{[%clk 0:02:22.9]} 15... b5 {[%clk 0:01:37]} 16. Ng5 {[%clk 0:02:13.7]} 16... h6
{[%clk 0:01:33.1]} 17. Nf3 {[%clk 0:02:10.4]} 17... Kd7 {[%clk 0:01:22.2]} 18.
Nd2 {[%clk 0:02:10]} 18... Bb4 {[%clk 0:01:19.4]} 19. Nb1 {[%clk 0:02:09.2]}
19... f5 {[%clk 0:01:15.3]} 20. exf6 {[%clk 0:01:57.2]} 20... gxf6 {[%clk
0:01:14.6]} 21. a3 {[%clk 0:01:47.3]} 21... Ba5 {[%clk 0:01:14.3]} 22. b4 {[%clk
0:01:42.4]} 22... cxb3 {[%clk 0:01:01.8]} 23. Rc5 {[%clk 0:01:42.1]} 23... a6
{[%clk 0:00:40.3]} 24. Rxd5+ {[%clk 0:01:36.5]} 24... Ke6 {[%clk 0:00:40.8]} 25.
Rc5 {[%clk 0:01:36.1]} 25... Ne7 {[%clk 0:00:40.7]} 26. Bd2 {[%clk 0:01:11.4]}
26... Bb6 {[%clk 0:00:40.2]} 27. Re1+ {[%clk 0:01:11.2]} 27... Kf7 {[%clk
0:00:40.7]} 28. Rc3 {[%clk 0:01:10.5]} 28... Bxd4 {[%clk 0:00:26.8]} 29. Rc7
{[%clk 0:00:48.9]} 29... Be5 {[%clk 0:00:26.5]} 30. Rxe7+ {[%clk 0:00:47.7]}
30... Kxe7 {[%clk 0:00:26.3]} 31. f4 {[%clk 0:00:48.3]} 31... Rac8 {[%clk
0:00:18.4]} 32. fxe5 {[%clk 0:00:47.3]} 32... fxe5 {[%clk 0:00:16.4]} 33. Bc3
{[%clk 0:00:46]} 33... Kf7 {[%clk 0:00:17.1]} 34. Bxe5 {[%clk 0:00:28.5]} 34...
Rhe8 {[%clk 0:00:17.6]} 35. Nd2 {[%clk 0:00:28.5]} 35... Rc5 {[%clk 0:00:12.9]}
36. Rf1+ {[%clk 0:00:25]} 36... Kg6 {[%clk 0:00:13.3]} 37. Bd4 {[%clk
0:00:24.3]} 37... Rd5 {[%clk 0:00:12.7]} 38. Nxb3 {[%clk 0:00:24.6]} 38... a5
{[%clk 0:00:12.7]} 39. Ba1 {[%clk 0:00:22.4]} 39... a4 {[%clk 0:00:11.2]} 40.
Nc1 {[%clk 0:00:22.3]} 40... Re3 {[%clk 0:00:11.1]} 41. Na2 {[%clk 0:00:18.2]}
41... Rxa3 {[%clk 0:00:06.8]} 42. Nc3 {[%clk 0:00:18.7]} 42... Rf5 {[%clk
0:00:05]} 43. Rb1 {[%clk 0:00:16.7]} 43... Rb3 {[%clk 0:00:03.8]} 44. Rxb3
{[%clk 0:00:15.2]} 44... axb3 {[%clk 0:00:04.7]} 45. Bb2 {[%clk 0:00:15]} 45...
b4 {[%clk 0:00:03.8]} 46. Ne4 {[%clk 0:00:14.3]} 46... Rf4 {[%clk 0:00:03.5]}
47. Nd2 {[%clk 0:00:13.4]} 47... Re4 {[%clk 0:00:02.1]} 48. Nxe4 {[%clk
0:00:13.1]} 1-0

[Event "Early-Titled-Tuesday-Blitz-July-09-2024"]
[Site "Chess.com"]
[Date "2024.07.09"]
[Round "3"]
[White "FloMasterAAK"]
[Black "AradNazari"]
[Result "0-1"]
[WhiteElo "2572"]
[BlackElo "2802"]
[TimeControl "180+1"]
[EndTime "8:30:03 PDT"]
[Termination "AradNazari won on time"]

1. e4 {[%clk 0:03:00.9]} 1... c5 {[%clk 0:02:48.5]} 2. Nf3 {[%clk 0:03:00.3]}
2... d6 {[%clk 0:02:48.7]} 3. d4 {[%clk 0:03:00.2]} 3... cxd4 {[%clk 0:02:49.6]}
4. Nxd4 {[%clk 0:03:00.8]} 4... Nf6 {[%clk 0:02:50.3]} 5. Nc3 {[%clk 0:03:01.3]}
5... Nc6 {[%clk 0:02:50.5]} 6. Bg5 {[%clk 0:03:00.8]} 6... a6 {[%clk 0:02:49.4]}
7. Qd2 {[%clk 0:03:00.9]} 7... e6 {[%clk 0:02:49.1]} 8. O-O-O {[%clk 0:03:00.7]}
8... Bd7 {[%clk 0:02:49.3]} 9. f4 {[%clk 0:03:00.8]} 9... Be7 {[%clk 0:02:49.2]}
10. Nf3 {[%clk 0:03:00.6]} 10... b5 {[%clk 0:02:44.4]} 11. Bxf6 {[%clk
0:03:00.3]} 11... gxf6 {[%clk 0:02:45.3]} 12. Kb1 {[%clk 0:03:00.4]} 12... Qb6
{[%clk 0:02:41.5]} 13. f5 {[%clk 0:03:00.3]} 13... Rc8 {[%clk 0:02:33.5]} 14.
Bd3 {[%clk 0:02:47.5]} 14... Ne5 {[%clk 0:02:30.8]} 15. Ne2 {[%clk 0:02:44]}
15... Nc4 {[%clk 0:02:27.6]} 16. Bxc4 {[%clk 0:02:41.8]} 16... Rxc4 {[%clk
0:02:28.5]} 17. Qd3 {[%clk 0:02:31.4]} 17... Qc7 {[%clk 0:02:10.5]} 18. Rhe1
{[%clk 0:02:18.7]} 18... b4 {[%clk 0:02:06.3]} 19. Nf4 {[%clk 0:02:04.1]} 19...
a5 {[%clk 0:02:00.4]} 20. Nd4 {[%clk 0:02:02.5]} 20... Qc8 {[%clk 0:01:26.4]}
21. fxe6 {[%clk 0:01:55.4]} 21... fxe6 {[%clk 0:01:26.4]} 22. Qg3 {[%clk
0:01:33.9]} 22... Kf7 {[%clk 0:01:15.2]} 23. Qf3 {[%clk 0:01:14.6]} 23... h5
{[%clk 0:00:51.1]} 24. Nxh5 {[%clk 0:00:44.5]} 24... Qc5 {[%clk 0:00:50.9]} 25.
Nxf6 {[%clk 0:00:19.4]} 25... Bxf6 {[%clk 0:00:46.5]} 26. e5 {[%clk 0:00:19.5]}
26... dxe5 {[%clk 0:00:41.7]} 27. Nb3 {[%clk 0:00:19.5]} 27... Qc7 {[%clk
0:00:37.9]} 28. Rf1 {[%clk 0:00:13]} 28... Rf4 {[%clk 0:00:38.1]} 29. Qd3 {[%clk
0:00:12.9]} 29... Bc6 {[%clk 0:00:25.2]} 30. g3 {[%clk 0:00:12]} 30... Be4
{[%clk 0:00:19.9]} 31. Qe2 {[%clk 0:00:08.1]} 31... Rxf1 {[%clk 0:00:13.9]} 32.
Rxf1 {[%clk 0:00:09]} 32... Bg6 {[%clk 0:00:14.8]} 33. Qf2 {[%clk 0:00:05.7]}
33... Qe7 {[%clk 0:00:14.4]} 34. Nxa5 {[%clk 0:00:03.6]} 34... Rc8 {[%clk
0:00:13.1]} 35. Rc1 {[%clk 0:00:02.8]} 35... Kg7 {[%clk 0:00:13.6]} 36. Nb3
{[%clk 0:00:02.5]} 36... Bg5 {[%clk 0:00:14.1]} 37. Re1 {[%clk 0:00:01.6]} 37...
Rxc2 {[%clk 0:00:14.3]} 38. Qxc2 {[%clk 0:00:01.6]} 38... Bxc2+ {[%clk
0:00:15.2]} 39. Kxc2 {[%clk 0:00:02.5]} 39... Qc7+ {[%clk 0:00:15.4]} 40. Kb1
{[%clk 0:00:02.9]} 40... Qc4 {[%clk 0:00:14.8]} 41. Rxe5 {[%clk 0:00:02.2]}
41... Qd3+ {[%clk 0:00:14.9]} 0-1

[Event "Early-Titled-Tuesday-Blitz-July-09-2024"]
[Site "Chess.com"]
[Date "2024.07.09"]
[Round "3"]
[White "slidingknight2775"]
[Black "FerAsensio2024"]
[Result "1-0"]
[WhiteElo "2777"]
[BlackElo "2541"]
[TimeControl "180+1"]
[EndTime "8:30:05 PDT"]
[Termination "slidingknight2775 won by resignation"]

1. c4 {[%clk 0:03:00.9]} 1... e5 {[%clk 0:03:00]} 2. d3 {[%clk 0:02:59.2]} 2...
Nc6 {[%clk 0:02:59.7]} 3. a3 {[%clk 0:02:56.4]} 3... a5 {[%clk 0:02:57.6]} 4.
Nf3 {[%clk 0:02:55]} 4... Nf6 {[%clk 0:02:45.8]} 5. Nc3 {[%clk 0:02:39.5]} 5...
h6 {[%clk 0:02:41.9]} 6. g3 {[%clk 0:02:39.3]} 6... Bc5 {[%clk 0:02:39.7]} 7.
Bg2 {[%clk 0:02:39.1]} 7... O-O {[%clk 0:02:39.1]} 8. O-O {[%clk 0:02:39.6]}
8... d6 {[%clk 0:02:39.3]} 9. e3 {[%clk 0:02:38.4]} 9... Bg4 {[%clk 0:02:33.1]}
10. h3 {[%clk 0:02:38.3]} 10... Bh5 {[%clk 0:02:26.5]} 11. g4 {[%clk 0:02:27]}
11... Bg6 {[%clk 0:02:00]} 12. d4 {[%clk 0:02:26.7]} 12... Ba7 {[%clk
0:01:50.7]} 13. b3 {[%clk 0:02:04]} 13... Qe7 {[%clk 0:01:35.8]} 14. Bb2 {[%clk
0:01:57.7]} 14... Rad8 {[%clk 0:01:30]} 15. d5 {[%clk 0:01:03]} 15... Nb8 {[%clk
0:01:15]} 16. Nh4 {[%clk 0:01:02.8]} 16... Bh7 {[%clk 0:00:56.1]} 17. Nf5 {[%clk
0:01:00.8]} 17... Bxf5 {[%clk 0:00:51]} 18. gxf5 {[%clk 0:01:01.7]} 18... e4
{[%clk 0:00:34.5]} 19. Ne2 {[%clk 0:00:56.8]} 19... Nbd7 {[%clk 0:00:23.6]} 20.
Ng3 {[%clk 0:00:55.7]} 20... Rde8 {[%clk 0:00:23]} 21. b4 {[%clk 0:00:53.1]}
21... Bb6 {[%clk 0:00:20.5]} 22. Kh1 {[%clk 0:00:50.4]} 22... Kh7 {[%clk
0:00:19.6]} 23. Bc3 {[%clk 0:00:29.9]} 23... axb4 {[%clk 0:00:18]} 24. axb4
{[%clk 0:00:29.6]} 24... Ne5 {[%clk 0:00:18.6]} 25. Qe2 {[%clk 0:00:24.1]} 25...
c6 {[%clk 0:00:09.2]} 26. Nxe4 {[%clk 0:00:15.3]} 26... Nxe4 {[%clk 0:00:05.1]}
27. Bxe4 {[%clk 0:00:16.2]} 27... cxd5 {[%clk 0:00:05.6]} 28. f6+ {[%clk
0:00:14.9]} 28... g6 {[%clk 0:00:02.3]} 29. fxe7 {[%clk 0:00:15.2]} 29... Rxe7
{[%clk 0:00:03.1]} 30. Bxd5 {[%clk 0:00:15.8]} 30... f5 {[%clk 0:00:02.4]} 31.
Bxe5 {[%clk 0:00:16.2]} 31... dxe5 {[%clk 0:00:02.6]} 32. c5 {[%clk 0:00:15.8]}
32... Bc7 {[%clk 0:00:02.9]} 33. b5 {[%clk 0:00:15.9]} 33... f4 {[%clk
0:00:03.1]} 34. b6 {[%clk 0:00:11.7]} 34... Bb8 {[%clk 0:00:03.7]} 35. Qg4
{[%clk 0:00:09.8]} 35... h5 {[%clk 0:00:03]} 36. Qg5 {[%clk 0:00:10.4]} 36...
Rd7 {[%clk 0:00:01.8]} 37. Be4 {[%clk 0:00:09.7]} 37... Rg7 {[%clk 0:00:02.1]}
38. Rg1 {[%clk 0:00:09.1]} 38... Kh8 {[%clk 0:00:02]} 39. Qh6+ {[%clk
0:00:08.6]} 39... Kg8 {[%clk 0:00:02.3]} 40. Bd5+ {[%clk 0:00:09]} 40... Rff7
{[%clk 0:00:01.5]} 41. Bxf7+ {[%clk 0:00:09.6]} 41... Kxf7 {[%clk 0:00:01.4]}
42. exf4 {[%clk 0:00:09.3]} 42... exf4 {[%clk 0:00:01.8]} 43. Rad1 {[%clk
0:00:09]} 43... Be5 {[%clk 0:00:02.3]} 44. Rd7+ {[%clk 0:00:08.7]} 44... Ke6
{[%clk 0:00:03.2]} 45. Rxg7 {[%clk 0:00:08.8]} 45... Bxg7 {[%clk 0:00:04]} 46.
Qxg7 {[%clk 0:00:08.9]} 1-0

[Event "Early-Titled-Tuesday-Blitz-July-09-2024"]
[Site "Chess.com"]
[Date "2024.07.09"]
[Round "3"]
[White "biveklama"]
[Black "Cmorales2001"]
[Result "1-0"]
[WhiteElo "2671"]
[BlackElo "2340"]
[TimeControl "180+1"]
[EndTime "8:30:05 PDT"]
[Termination "biveklama won by resignation"]

1. e4 {[%clk 0:03:00.9]} 1... c6 {[%clk 0:03:00]} 2. d4 {[%clk 0:02:58.6]} 2...
d5 {[%clk 0:03:00]} 3. e5 {[%clk 0:02:56.9]} 3... Bf5 {[%clk 0:02:59.5]} 4. h4
{[%clk 0:02:56.9]} 4... h5 {[%clk 0:02:59.1]} 5. Bd3 {[%clk 0:02:54.9]} 5...
Bxd3 {[%clk 0:02:59.7]} 6. Qxd3 {[%clk 0:02:55.8]} 6... Qa5+ {[%clk 0:02:58.4]}
7. Nc3 {[%clk 0:02:55.9]} 7... e6 {[%clk 0:02:53.9]} 8. Bg5 {[%clk 0:02:55.5]}
8... Qa6 {[%clk 0:02:53.6]} 9. Qh3 {[%clk 0:02:54.6]} 9... Ne7 {[%clk
0:02:52.4]} 10. Nge2 {[%clk 0:02:53.7]} 10... Nf5 {[%clk 0:02:50.8]} 11. O-O
{[%clk 0:02:50.8]} 11... Nd7 {[%clk 0:02:45.2]} 12. a4 {[%clk 0:02:48.2]} 12...
Bb4 {[%clk 0:02:42.7]} 13. Rfd1 {[%clk 0:02:45]} 13... Qb6 {[%clk 0:02:15.5]}
14. b3 {[%clk 0:02:39.1]} 14... Rc8 {[%clk 0:02:08.5]} 15. a5 {[%clk 0:02:07.3]}
15... Bxa5 {[%clk 0:02:02.3]} 16. Na4 {[%clk 0:02:06.9]} 16... Qc7 {[%clk
0:02:01.7]} 17. c4 {[%clk 0:02:06.6]} 17... Bb4 {[%clk 0:01:46.9]} 18. cxd5
{[%clk 0:01:49.8]} 18... cxd5 {[%clk 0:01:44.6]} 19. Rac1 {[%clk 0:01:48.7]}
19... Qb8 {[%clk 0:01:44.8]} 20. Rxc8+ {[%clk 0:01:45.7]} 20... Qxc8 {[%clk
0:01:45.2]} 21. Rc1 {[%clk 0:01:46.4]} 21... Qb8 {[%clk 0:01:44.1]} 22. Qd3
{[%clk 0:01:28.1]} 22... a6 {[%clk 0:01:41.4]} 23. Nf4 {[%clk 0:01:16.8]} 23...
g6 {[%clk 0:01:17.5]} 24. f3 {[%clk 0:01:03.3]} 24... b5 {[%clk 0:00:42.5]} 25.
Nb2 {[%clk 0:00:46.5]} 25... Be7 {[%clk 0:00:21.1]} 26. Qc3 {[%clk 0:00:22.4]}
26... Bxg5 {[%clk 0:00:19.8]} 27. hxg5 {[%clk 0:00:23.3]} 27... O-O {[%clk
0:00:19.9]} 28. Nbd3 {[%clk 0:00:21.7]} 28... Qa7 {[%clk 0:00:18.3]} 29. Ne2
{[%clk 0:00:20.7]} 29... Nb6 {[%clk 0:00:16.6]} 30. Qc5 {[%clk 0:00:20.1]} 30...
Qb8 {[%clk 0:00:16.3]} 31. Nb4 {[%clk 0:00:19.9]} 31... Qd8 {[%clk 0:00:14.9]}
32. Nxa6 {[%clk 0:00:19.3]} 32... Nd7 {[%clk 0:00:10.8]} 33. Qc7 {[%clk
0:00:16.3]} 33... Qe7 {[%clk 0:00:10.4]} 34. Nc5 {[%clk 0:00:15.2]} 34... Nxc5
{[%clk 0:00:10.1]} 35. Qxe7 {[%clk 0:00:16]} 35... Nxe7 {[%clk 0:00:10.3]} 36.
Rxc5 {[%clk 0:00:16.9]} 36... Rb8 {[%clk 0:00:09.6]} 37. b4 {[%clk 0:00:16.2]}
37... Kf8 {[%clk 0:00:09.7]} 38. Nc3 {[%clk 0:00:16.6]} 38... Ke8 {[%clk
0:00:09.8]} 39. Rxb5 {[%clk 0:00:16.7]} 39... Ra8 {[%clk 0:00:10]} 40. Rc5
{[%clk 0:00:17]} 40... Ra1+ {[%clk 0:00:09.5]} 41. Kf2 {[%clk 0:00:17.6]} 41...
Rc1 {[%clk 0:00:08.6]} 42. Nxd5 {[%clk 0:00:14.6]} 42... Rxc5 {[%clk 0:00:07.4]}
43. Nf6+ {[%clk 0:00:15.3]} 43... Kd8 {[%clk 0:00:06.7]} 44. dxc5 {[%clk
0:00:16.2]} 44... Nc6 {[%clk 0:00:06.8]} 45. b5 {[%clk 0:00:16.5]} 45... Nxe5
{[%clk 0:00:07.3]} 46. f4 {[%clk 0:00:16.5]} 46... Nd3+ {[%clk 0:00:07.6]} 47.
Ke3 {[%clk 0:00:17.2]} 47... Nxc5 {[%clk 0:00:08.5]} 48. Kd4 {[%clk 0:00:17.9]}
48... Nd7 {[%clk 0:00:08.9]} 49. Nxd7 {[%clk 0:00:17.8]} 49... Kxd7 {[%clk
0:00:09.8]} 50. Ke5 {[%clk 0:00:18.7]} 50... Ke7 {[%clk 0:00:10.1]} 51. b6
{[%clk 0:00:18.9]} 1-0

[Event "Early-Titled-Tuesday-Blitz-July-09-2024"]
[Site "Chess.com"]
[Date "2024.07.09"]
[Round "3"]
[White "Chernov_Alexander_A"]
[Black "kuchma777"]
[Result "0-1"]
[WhiteElo "2258"]
[BlackElo "2467"]
[TimeControl "180+1"]
[EndTime "8:30:05 PDT"]
[Termination "kuchma777 won by resignation"]

1. d4 {[%clk 0:03:00.9]} 1... Nf6 {[%clk 0:03:00]} 2. Nc3 {[%clk 0:03:00.5]}
2... d5 {[%clk 0:02:59.7]} 3. Bg5 {[%clk 0:02:59.2]} 3... h6 {[%clk 0:02:59.2]}
4. Bh4 {[%clk 0:02:58.2]} 4... g6 {[%clk 0:02:59.6]} 5. e3 {[%clk 0:02:57.4]}
5... Bg7 {[%clk 0:02:59.8]} 6. Nf3 {[%clk 0:02:57.5]} 6... O-O {[%clk
0:03:00.3]} 7. Bd3 {[%clk 0:02:57.4]} 7... Bg4 {[%clk 0:02:59.9]} 8. h3 {[%clk
0:02:56]} 8... Bxf3 {[%clk 0:02:56.3]} 9. Qxf3 {[%clk 0:02:53.3]} 9... c6 {[%clk
0:02:56.2]} 10. O-O {[%clk 0:02:50]} 10... Nbd7 {[%clk 0:02:56.4]} 11. Rad1
{[%clk 0:02:44.7]} 11... e5 {[%clk 0:02:56.2]} 12. dxe5 {[%clk 0:02:43.6]} 12...
Nxe5 {[%clk 0:02:57.1]} 13. Qe2 {[%clk 0:02:43.1]} 13... Nxd3 {[%clk 0:02:54.9]}
14. Qxd3 {[%clk 0:02:39.3]} 14... Qb6 {[%clk 0:02:55.4]} 15. b3 {[%clk
0:02:25.4]} 15... Qa5 {[%clk 0:02:48]} 16. Na4 {[%clk 0:02:19.4]} 16... Nd7
{[%clk 0:02:37.1]} 17. c4 {[%clk 0:01:55.9]} 17... Ne5 {[%clk 0:02:33.1]} 18.
Qc2 {[%clk 0:01:53.4]} 18... dxc4 {[%clk 0:02:28.9]} 19. bxc4 {[%clk 0:01:53.2]}
19... Rac8 {[%clk 0:02:03.4]} 20. Bg3 {[%clk 0:01:45.4]} 20... Nxc4 {[%clk
0:01:46.7]} 21. Qxc4 {[%clk 0:01:37.1]} 21... b5 {[%clk 0:01:45.9]} 22. Qb3
{[%clk 0:01:18.5]} 22... bxa4 {[%clk 0:01:44]} 23. Qb7 {[%clk 0:01:15.9]} 23...
c5 {[%clk 0:01:38.5]} 24. Rd7 {[%clk 0:01:13.6]} 24... Qb6 {[%clk 0:01:11.2]}
25. Qd5 {[%clk 0:00:59]} 25... Rcd8 {[%clk 0:00:54]} 26. Rc1 {[%clk 0:00:40.9]}
26... Rxd7 {[%clk 0:00:37.3]} 27. Qxd7 {[%clk 0:00:40.8]} 27... Rd8 {[%clk
0:00:37.3]} 28. Qxa4 {[%clk 0:00:40.4]} 28... Rc8 {[%clk 0:00:32.3]} 29. Qc4
{[%clk 0:00:39.9]} 29... Qe6 {[%clk 0:00:20.6]} 30. Kh2 {[%clk 0:00:38.5]} 30...
Qxc4 {[%clk 0:00:19.1]} 31. Rxc4 {[%clk 0:00:39]} 31... f5 {[%clk 0:00:18.9]}
32. Bd6 {[%clk 0:00:38.5]} 32... Bf8 {[%clk 0:00:19.1]} 33. Be5 {[%clk
0:00:38.5]} 33... Kf7 {[%clk 0:00:18.7]} 34. f4 {[%clk 0:00:37.3]} 34... Ke6
{[%clk 0:00:18.9]} 35. g4 {[%clk 0:00:36.8]} 35... Kd5 {[%clk 0:00:19]} 36. Rc3
{[%clk 0:00:34.9]} 36... c4 {[%clk 0:00:19.2]} 37. Kg3 {[%clk 0:00:33.2]} 37...
Bb4 {[%clk 0:00:18.9]} 38. Rc2 {[%clk 0:00:33.2]} 38... Ke4 {[%clk 0:00:19.2]}
39. Kf2 {[%clk 0:00:32.7]} 39... Kd3 {[%clk 0:00:17.9]} 40. Rc1 {[%clk
0:00:32.6]} 40... c3 {[%clk 0:00:15.7]} 41. Rd1+ {[%clk 0:00:31.2]} 41... Kc2
{[%clk 0:00:15.3]} 42. Rd7 {[%clk 0:00:30.2]} 42... a5 {[%clk 0:00:11.7]} 43.
Rg7 {[%clk 0:00:27.3]} 43... fxg4 {[%clk 0:00:11.7]} 44. hxg4 {[%clk 0:00:26.8]}
44... Rc6 {[%clk 0:00:12.2]} 45. Ke2 {[%clk 0:00:22.9]} 45... Kb1 {[%clk
0:00:11.2]} 46. e4 {[%clk 0:00:17.1]} 46... c2 {[%clk 0:00:10.6]} 47. Rxg6
{[%clk 0:00:12.8]} 47... c1=Q {[%clk 0:00:11.5]} 48. Rxc6 {[%clk 0:00:10.5]}
48... Qxc6 {[%clk 0:00:12.4]} 0-1